lending/lending_fUSD_20250408
["ID","MTS","AMOUNT","RATE_DAILY","PERIOD"]
[357524255,1744121443781,-1000.0,0.00035,120]
[357524256,1744121443791,-164.38952476,0.00035206,7]
[357524257,1744121443801,-438.153,0.00035207,41]
[357524258,1744121443811,-436.6226,0.00035496,2]
[357524259,1744121443820,-737.86976246,0.00035496,2]
[357524260,1744121443829,-2052.313501,0.000355,2]
[357524261,1744121443839,-1000.0,0.000355,12]
[357524262,1744121443848,-16917.3129,0.00035505,2]
[357524263,1744121443858,-502.9023,0.00035505,2]
[357524264,1744121443867,-1000.0,0.00035506,2]
[357524265,1744121443877,-2500.0,0.00035506,2]
[357524266,1744121443887,-500.0,0.00035516,2]
[357524267,1744121443896,-169.86254503,0.00035516,2]
[357524268,1744121443907,-174.50108937,0.00035516,8]
[357524269,1744121443917,-166.77649458,0.00035516,8]
[357524270,1744121443928,-460.72463189,0.00035516,9]
[357524271,1744121443938,-151.0,0.00035583,2]
[357524272,1744121443948,-11425.1783751,0.00035595,2]
[357524273,1744121443966,-137102.140501,0.00035596,2]
[357524274,1744121443976,-553.15547183,0.00035596,2]
[357524275,1744121443986,-151.55,0.00035596,2]
[357524276,1744121443996,-4519.11770168,0.000356,7]
[357524277,1744121444006,-2100.0,0.000356,12]
[357524278,1744121444016,-580.87100005,0.00035605,7]
[357524279,1744121444026,-500.0,0.00035605,7]
[357524280,1744121444036,-1839.31441161,0.00035605,7]
[357524281,1744121444046,-500.0,0.00035605,7]
[357524282,1744121444056,-1839.31441161,0.00035605,7]
[357524283,1744121444065,-1839.31441161,0.00035605,7]
[357524284,1744121444074,-1839.31441161,0.00035605,7]
[357524285,1744121444084,-1839.31441161,0.00035605,7]
[357524286,1744121444096,-1839.31441161,0.00035605,7]
[357524288,1744121444109,-500.0,0.00035605,7]
[357524289,1744121444124,-1839.31441161,0.00035605,7]
[357524291,1744121444133,-174.08705325,0.00035605,7]
[357524292,1744121444143,-1839.31441161,0.00035605,7]
[357524293,1744121444152,-500.0,0.00035605,7]
[357524294,1744121444163,-500.0,0.00035605,7]
[357524295,1744121444173,-1839.31441161,0.00035605,7]
[357524296,1744121444184,-1839.31441161,0.00035605,7]
[357524297,1744121444193,-500.0,0.00035605,7]
[357524298,1744121444206,-1839.31441161,0.00035605,7]
[357524299,1744121444215,-500.0,0.00035605,7]
[357524300,1744121444225,-1839.31441161,0.00035605,7]
[357524301,1744121444235,-1839.31441161,0.00035605,7]
[357524302,1744121444244,-1839.31441161,0.00035605,7]
[357524303,1744121444254,-1839.31441161,0.00035605,7]
[357524304,1744121444263,-500.0,0.00035605,7]
[357524305,1744121444272,-3514.9337676,0.00035605,7]
[357524306,1744121444282,-500.0,0.00035605,7]
[357524307,1744121444291,-3514.9337676,0.00035605,7]
[357524308,1744121444300,-500.0,0.00035605,7]
[357524309,1744121444309,-3514.9337676,0.00035605,7]
[357524310,1744121444318,-500.0,0.00035605,7]
[357524311,1744121444327,-500.0,0.00035605,7]
[357524312,1744121444336,-3514.9337676,0.00035605,7]
[357524313,1744121444345,-3514.9337676,0.00035605,7]
[357524314,1744121444355,-500.0,0.00035605,7]
[357524315,1744121444364,-3514.9337676,0.00035605,7]
[357524316,1744121444373,-3514.9337676,0.00035605,7]
[357524317,1744121444383,-3514.9337676,0.00035605,7]
[357524318,1744121444392,-3514.9337676,0.00035605,7]
[357524319,1744121444401,-3648.16109588,0.00035605,7]
[357524320,1744121444410,-3648.16109588,0.00035605,7]
[357524321,1744121444419,-3648.16109588,0.00035605,7]
[357524322,1744121444428,-3648.16109588,0.00035605,7]
[357524323,1744121444438,-1488.788984,0.00035605,120]
[357524324,1744121444447,-547.634802,0.00035605,120]
[357524325,1744121444462,-500.0,0.00035605,120]
[357524326,1744121444471,-137102.140501,0.00035606,2]
[357524327,1744121444480,-7191.02113379,0.00035606,2]
[357524328,1744121444489,-183.89964179,0.00035606,2]
[357524329,1744121444499,-150.0,0.00035615,2]
[357524330,1744121444508,-1046.0,0.00035616,5]
[357524331,1744121444518,-281.10967915,0.00035616,2]
[357524332,1744121444527,-160.45174466,0.00035616,2]
[357524333,1744121444536,-159.29,0.00035616,2]
[357524334,1744121444546,-107381.03706169,0.00035616,2]
[357524335,1744121444555,-617.11370323,0.00035616,2]
[357524336,1744121444564,-500.0,0.00035616,2]
[357524337,1744121444574,-500.0,0.00035616,2]
[357524338,1744121444583,-529.32015469,0.00035616,2]
[357524339,1744121444593,-600.30779406,0.00035616,2]
[357524340,1744121444602,-500.0,0.00035616,2]
[357524341,1744121444611,-500.0,0.00035616,2]
[357524342,1744121444621,-501.39149034,0.00035616,2]
[357524343,1744121444630,-525.21961267,0.00035616,2]
[357524344,1744121444640,-500.0,0.00035616,2]
[357524345,1744121444649,-500.0,0.00035616,2]
[357524346,1744121444658,-608.4382941,0.00035616,2]
[357524347,1744121444667,-500.0,0.00035616,2]
[357524348,1744121444676,-500.0,0.00035616,2]
[357524349,1744121444686,-500.0,0.00035616,2]
[357524350,1744121444695,-500.0,0.00035616,2]
[357524351,1744121444711,-222.51579692,0.00035616,2]
[357524352,1744121444721,-500.0,0.00035616,2]
[357524353,1744121444731,-500.0,0.00035616,2]
[357524354,1744121444741,-500.0,0.00035616,2]
[357524355,1744121444751,-500.0,0.00035616,2]
[357524356,1744121444760,-500.0,0.00035616,2]
[357524357,1744121444770,-500.0,0.00035616,2]
[357524358,1744121444780,-561.61,0.00035616,2]
[357524359,1744121444789,-500.0,0.00035616,2]
[357524360,1744121444798,-500.0,0.00035616,2]
[357524361,1744121444808,-524.64,0.00035616,2]
[357524362,1744121444818,-528.79736943,0.00035616,2]
[357524363,1744121444827,-500.0,0.00035616,2]
[357524364,1744121444836,-514.58060865,0.00035616,2]
[357524365,1744121444845,-282.14136637,0.00035616,2]
[357524366,1744121444855,-500.0,0.00035616,2]
[357524367,1744121444864,-500.0,0.00035616,2]
[357524368,1744121444874,-535.40157971,0.00035616,2]
[357524369,1744121444883,-500.0,0.00035616,2]
[357524370,1744121444892,-500.0,0.00035616,2]
[357524371,1744121444902,-500.0,0.00035616,2]
[357524372,1744121444911,-500.0,0.00035616,2]
[357524373,1744121444920,-500.0,0.00035616,2]
[357524374,1744121444929,-500.0,0.00035616,2]
[357524375,1744121444939,-500.0,0.00035616,2]
[357524376,1744121444948,-500.0,0.00035616,2]
[357524377,1744121444964,-500.0,0.00035616,2]
[357524378,1744121444973,-513.98099984,0.00035616,2]
[357524379,1744121444983,-500.0,0.00035616,2]
[357524380,1744121444993,-614.88,0.00035616,2]
[357524381,1744121445002,-502.60661619,0.00035616,2]
[357524382,1744121445011,-500.0,0.00035616,2]
[357524383,1744121445020,-500.0,0.00035616,2]
[357524384,1744121445030,-500.0,0.00035616,2]
[357524385,1744121445039,-500.0,0.00035616,2]
[357524386,1744121445048,-500.0,0.00035616,2]
[357524387,1744121445059,-500.0,0.00035616,2]
[357524388,1744121445068,-500.0,0.00035616,2]
[357524389,1744121445078,-500.0,0.00035616,2]
[357524390,1744121445087,-500.0,0.00035616,2]
[357524391,1744121445099,-500.0,0.00035616,2]
[357524392,1744121445110,-500.0,0.00035616,2]
[357524393,1744121445119,-500.0,0.00035616,2]
[357524394,1744121445129,-500.0,0.00035616,2]
[357524395,1744121445139,-500.0,0.00035616,2]
[357524396,1744121445149,-500.0,0.00035616,2]
[357524397,1744121445159,-500.0,0.00035616,2]
[357524398,1744121445168,-537.17067853,0.00035616,2]
[357524399,1744121445177,-500.0,0.00035616,2]
[357524400,1744121445188,-500.0,0.00035616,2]
[357524401,1744121445198,-500.0,0.00035616,2]
[357524402,1744121445210,-1340.94,0.00035616,2]
[357524403,1744121445220,-500.0,0.00035616,2]
[357524404,1744121445229,-500.0,0.00035616,2]
[357524405,1744121445239,-500.0,0.00035616,2]
[357524406,1744121445248,-1205.6,0.00035616,2]
[357524407,1744121445258,-500.0,0.00035616,2]
[357524408,1744121445268,-500.0,0.00035616,2]
[357524409,1744121445278,-502.39540087,0.00035616,2]
[357524410,1744121445287,-500.0,0.00035616,2]
[357524411,1744121445297,-761.04,0.00035616,2]
[357524412,1744121445306,-500.0,0.00035616,2]
[357524413,1744121445315,-500.0,0.00035616,2]
[357524414,1744121445325,-500.0,0.00035616,2]
[357524415,1744121445334,-500.0,0.00035616,2]
[357524416,1744121445343,-500.0,0.00035616,2]
[357524417,1744121445353,-500.0,0.00035616,2]
[357524418,1744121445363,-500.0,0.00035616,2]
[357524419,1744121445372,-500.0,0.00035616,2]
[357524420,1744121445381,-515.3536,0.00035616,2]
[357524421,1744121445391,-500.0,0.00035616,2]
[357524422,1744121445400,-500.0,0.00035616,2]
[357524423,1744121445410,-542.54617161,0.00035616,2]
[357524424,1744121445419,-500.0,0.00035616,2]
[357524425,1744121445429,-500.0,0.00035616,2]
[357524426,1744121445438,-578.98,0.00035616,2]
[357524427,1744121445447,-679.83,0.00035616,2]
[357524428,1744121445461,-500.0,0.00035616,2]
[357524429,1744121445471,-500.0,0.00035616,2]
[357524430,1744121445481,-2000.0,0.00035616,2]
[357524431,1744121445490,-500.0,0.00035616,2]
[357524432,1744121445500,-500.0,0.00035616,2]
[357524433,1744121445509,-500.0,0.00035616,2]
[357524434,1744121445519,-506.8509702,0.00035616,2]
[357524435,1744121445529,-500.0,0.00035616,2]
[357524436,1744121445538,-514.39237686,0.00035616,2]
[357524437,1744121445548,-500.0,0.00035616,2]
[357524438,1744121445557,-500.0,0.00035616,2]
[357524439,1744121445567,-500.0,0.00035616,2]
[357524440,1744121445576,-500.0,0.00035616,120]
[357524441,1744121445585,-749.14,0.00035616,2]
[357524442,1744121445595,-500.0,0.00035616,2]
[357524443,1744121445604,-500.0,0.00035616,2]
[357524444,1744121445614,-500.0,0.00035616,2]
[357524445,1744121445623,-996.36,0.00035616,2]
[357524446,1744121445633,-500.0,0.00035616,2]
[357524447,1744121445643,-500.0,0.00035616,2]
[357524448,1744121445652,-500.0,0.00035616,2]
[357524449,1744121445662,-1413.6,0.00035616,2]
[357524450,1744121445672,-310.16472496,0.00035616,2]
[357524451,1744121445681,-500.0,0.00035616,2]
[357524452,1744121445691,-500.0,0.00035616,2]
[357524453,1744121445704,-269.77352628,0.00035616,2]
[357524454,1744121445716,-500.0,0.00035616,2]
[357524455,1744121445726,-500.0,0.00035616,2]
[357524456,1744121445735,-500.0,0.00035616,2]
[357524457,1744121445745,-515.76191086,0.00035616,2]
[357524458,1744121445754,-500.0,0.00035616,2]
[357524459,1744121445765,-500.0,0.00035616,2]
[357524460,1744121445775,-500.0,0.00035616,2]
[357524461,1744121445785,-608.68,0.00035616,2]
[357524462,1744121445795,-500.0,0.00035616,2]
[357524463,1744121445804,-565.45,0.00035616,2]
[357524464,1744121445814,-229.11898578,0.00035616,2]
[357524465,1744121445824,-500.0,0.00035616,2]
[357524466,1744121445834,-500.0,0.00035616,2]
[357524467,1744121445844,-500.0,0.00035616,2]
[357524468,1744121445855,-500.0,0.00035616,2]
[357524469,1744121445864,-607.17,0.00035616,2]
[357524470,1744121445875,-503.45,0.00035616,2]
[357524471,1744121445885,-500.0,0.00035616,2]
[357524472,1744121445895,-780.54,0.00035616,2]
[357524473,1744121445905,-506.19483882,0.00035616,2]
[357524474,1744121445915,-500.0,0.00035616,2]
[357524475,1744121445924,-500.0,0.00035616,2]
[357524476,1744121445934,-500.0,0.00035616,2]
[357524477,1744121445943,-500.0,0.00035616,2]
[357524478,1744121445955,-500.0,0.00035616,2]
[357524479,1744121445970,-528.15434712,0.00035616,2]
[357524480,1744121445980,-266.43833639,0.00035616,2]
[357524481,1744121445990,-563.30220295,0.00035616,2]
[357524482,1744121445999,-3142.81,0.00035616,2]
[357524483,1744121446009,-500.0,0.00035616,2]
[357524484,1744121446018,-500.0,0.00035616,2]
[357524485,1744121446028,-500.0,0.00035616,2]
[357524486,1744121446037,-500.0,0.00035616,2]
[357524487,1744121446051,-593.99316625,0.00035616,2]
[357524488,1744121446060,-500.0,0.00035616,2]
[357524489,1744121446070,-500.0,0.00035616,2]
[357524490,1744121446080,-500.0,0.00035616,2]
[357524491,1744121446089,-500.0,0.00035616,2]
[357524492,1744121446100,-512.16049596,0.00035616,2]
[357524493,1744121446112,-500.0,0.00035616,2]
[357524494,1744121446122,-500.0,0.00035616,2]
[357524495,1744121446131,-500.0,0.00035616,2]
[357524496,1744121446140,-500.0,0.00035616,2]
[357524497,1744121446150,-500.0,0.00035616,2]
[357524498,1744121446160,-508.67282078,0.00035616,2]
[357524499,1744121446170,-510.28330055,0.00035616,2]
[357524500,1744121446179,-526.25982709,0.00035616,2]
[357524501,1744121446191,-500.0,0.00035616,2]
[357524502,1744121446200,-295.22964038,0.00035616,2]
[357524503,1744121446213,-3068.4,0.00035616,2]
[357524504,1744121446222,-500.0,0.00035616,2]
[357524505,1744121446234,-503.2494329,0.00035616,2]
[357524506,1744121446243,-1093.02,0.00035616,2]
[357524508,1744121446253,-499.89129884,0.00035616,2]
[357524509,1744121446263,-500.0,0.00035616,2]
[357524510,1744121446272,-765.97,0.00035616,2]
[357524512,1744121446281,-157.71700397,0.00035616,2]
[357524515,1744121446290,-500.0,0.00035616,2]
[357524518,1744121446299,-733.1,0.00035616,2]
[357524520,1744121446310,-500.0,0.00035616,2]
[357524522,1744121446319,-495.99110917,0.00035616,2]
[357524524,1744121446328,-563.27355382,0.00035616,2]
[357524526,1744121446337,-500.0,0.00035616,2]
[357524528,1744121446346,-500.0,0.00035616,2]
[357524530,1744121446355,-500.0,0.00035616,2]
[357524532,1744121446364,-500.0,0.00035616,2]
[357524534,1744121446373,-500.0,0.00035616,2]
[357524536,1744121446382,-824.88,0.00035616,2]
[357524539,1744121446391,-650.2,0.00035616,2]
[357524541,1744121446400,-500.0,0.00035616,2]
[357524543,1744121446410,-500.0,0.00035616,2]
[357524545,1744121446419,-1239.46,0.00035616,2]
[357524547,1744121446428,-500.0,0.00035616,2]
[357524550,1744121446438,-658.54,0.00035616,2]
[357524552,1744121446447,-706.65,0.00035616,2]
[357524554,1744121446459,-500.0,0.00035616,2]
[357524556,1744121446468,-510.14487039,0.00035616,2]
[357524558,1744121446478,-500.0,0.00035616,2]
[357524560,1744121446487,-500.0,0.00035616,2]
[357524562,1744121446497,-500.0,0.00035616,2]
[357524563,1744121446506,-500.0,0.00035616,2]
[357524565,1744121446516,-500.0,0.00035616,2]
[357524567,1744121446525,-500.0,0.00035616,2]
[357524569,1744121446534,-500.0,0.00035616,2]
[357524571,1744121446543,-500.0,0.00035616,2]
[357524573,1744121446553,-500.0,0.00035616,2]
[357524574,1744121446562,-500.0,0.00035616,2]
[357524575,1744121446571,-500.0,0.00035616,2]
[357524576,1744121446581,-500.0,0.00035616,2]
[357524577,1744121446590,-500.0,0.00035616,2]
[357524578,1744121446600,-500.0,0.00035616,2]
[357524579,1744121446609,-530.89442664,0.00035616,2]
[357524580,1744121446620,-513.49999448,0.00035616,2]
[357524581,1744121446629,-500.0,0.00035616,2]
[357524582,1744121446639,-500.0,0.00035616,2]
[357524583,1744121446648,-2000.0,0.00035616,120]
[357524584,1744121446657,-500.0,0.00035616,2]
[357524585,1744121446667,-1126.28,0.00035616,2]
[357524586,1744121446676,-2000.0,0.00035616,120]
[357524587,1744121446685,-2000.0,0.00035616,120]
[357524588,1744121446694,-592.5,0.00035616,2]
[357524589,1744121446705,-500.0,0.00035616,2]
[357524590,1744121446714,-967.02509238,0.00035616,120]
[357524591,1744121446723,-507.85554665,0.00035616,2]
[357524592,1744121446732,-511.92811242,0.00035616,2]
[357524593,1744121446741,-500.0,0.00035616,2]
[357524594,1744121446751,-501.25,0.00035616,2]
[357524595,1744121446760,-500.0,0.00035616,2]
[357524596,1744121446769,-500.0,0.00035616,2]
[357524597,1744121446778,-500.0,0.00035616,2]
[357524598,1744121446787,-500.0,0.00035616,2]
[357524599,1744121446796,-500.0,0.00035616,2]
[357524600,1744121446805,-1815.52,0.00035616,2]
[357524601,1744121446815,-500.0,0.00035616,2]
[357524602,1744121446823,-506.22834439,0.00035616,2]
[357524603,1744121446832,-524.13273751,0.00035616,2]
[357524604,1744121446842,-507.75509645,0.00035616,2]
[357524605,1744121446851,-500.0,0.00035616,2]
[357524606,1744121446860,-519.06871972,0.00035616,2]
[357524607,1744121446869,-500.0,0.00035616,2]
[357524608,1744121446878,-500.0,0.00035616,2]
[357524609,1744121446887,-674.71,0.00035616,2]
[357524610,1744121446897,-500.0,0.00035616,2]
[357524611,1744121446906,-519.958909,0.00035616,2]
[357524612,1744121446915,-500.0,0.00035616,2]
[357524613,1744121446924,-500.0,0.00035616,2]
[357524614,1744121446934,-500.0,0.00035616,2]
[357524615,1744121446945,-500.0,0.00035616,2]
[357524616,1744121446954,-505.73665257,0.00035616,2]
[357524617,1744121446964,-500.0,0.00035616,2]
[357524618,1744121446973,-500.0,0.00035616,2]
[357524619,1744121446983,-500.0,0.00035616,2]
[357524620,1744121446992,-500.0,0.00035616,2]
[357524621,1744121447001,-514.41,0.00035616,2]
[357524623,1744121447011,-500.0,0.00035616,2]
[357524625,1744121447021,-500.0,0.00035616,2]
[357524626,1744121447030,-500.0,0.00035616,2]
[357524628,1744121447039,-505.21213795,0.00035616,2]
[357524629,1744121447048,-501.70571615,0.00035616,2]
[357524630,1744121447058,-231.84632577,0.00035616,2]
[357524631,1744121447067,-1005.59,0.00035616,2]
[357524632,1744121447077,-500.0,0.00035616,2]
[357524633,1744121447086,-1188.46,0.00035616,2]
[357524634,1744121447096,-509.28779918,0.00035616,2]
[357524635,1744121447106,-547.65,0.00035616,2]
[357524636,1744121447119,-500.38655501,0.00035616,2]
[357524637,1744121447129,-500.0,0.00035616,2]
[357524638,1744121447139,-759.61,0.00035616,2]
[357524639,1744121447148,-500.0,0.00035616,2]
[357524640,1744121447157,-500.0,0.00035616,2]
[357524641,1744121447166,-510.39897368,0.00035616,2]
[357524642,1744121447176,-539.83971647,0.00035616,2]
[357524643,1744121447186,-500.0,0.00035616,2]
[357524644,1744121447196,-847.89,0.00035616,2]
[357524645,1744121447207,-577.98,0.00035616,2]
[357524646,1744121447216,-1093.66,0.00035616,2]
[357524647,1744121447226,-500.0,0.00035616,2]
[357524648,1744121447235,-1112.9,0.00035616,2]
[357524649,1744121447245,-500.0,0.00035616,2]
[357524650,1744121447254,-500.0,0.00035616,2]
[357524651,1744121447263,-500.0,0.00035616,2]
[357524652,1744121447273,-626.99260275,0.00035616,2]
[357524653,1744121447283,-500.0,0.00035616,2]
[357524654,1744121447292,-500.0,0.00035616,2]
[357524655,1744121447302,-500.0,0.00035616,2]
[357524656,1744121447311,-500.0,0.00035616,2]
[357524657,1744121447320,-500.0,0.00035616,2]
[357524658,1744121447329,-306.13849607,0.00035616,30]
[357524659,1744121447338,-500.0,0.00035616,2]
[357524660,1744121447348,-510.36056158,0.00035616,2]
[357524661,1744121447357,-500.0,0.00035616,2]
[357524662,1744121447367,-517.42616475,0.00035616,2]
[357524663,1744121447376,-828.91,0.00035616,2]
[357524664,1744121447385,-536.26,0.00035616,2]
[357524665,1744121447395,-500.0,0.00035616,2]
[357524666,1744121447404,-500.0,0.00035616,2]
[357524667,1744121447414,-500.0,0.00035616,2]
[357524668,1744121447424,-500.0,0.00035616,2]
[357524669,1744121447433,-504.82434391,0.00035616,2]
[357524670,1744121447442,-500.0,0.00035616,2]
[357524671,1744121447451,-500.0,0.00035616,2]
[357524672,1744121447464,-500.0,0.00035616,2]
[357524673,1744121447474,-504.96628764,0.00035616,2]
[357524674,1744121447483,-501.36275469,0.00035616,2]
[357524675,1744121447493,-500.0,0.00035616,2]
[357524676,1744121447502,-512.43011038,0.00035616,2]
[357524677,1744121447512,-500.0,0.00035616,2]
[357524678,1744121447521,-553.34,0.00035616,2]
[357524679,1744121447530,-500.0,0.00035616,2]
[357524680,1744121447755,-1000.99,0.00035616,2]
[357524681,1744121447765,-502.2530264,0.00035616,2]
[357524682,1744121447775,-503.11581657,0.00035616,2]
[357524683,1744121447784,-500.0,0.00035616,2]
[357524684,1744121447793,-824.54,0.00035616,2]
[357524685,1744121447803,-506.30769705,0.00035616,2]
[357524686,1744121447812,-500.36392827,0.00035616,2]
[357524687,1744121447821,-500.0,0.00035616,2]
[357524688,1744121447831,-500.0,0.00035616,2]
[357524689,1744121447840,-500.0,0.00035616,2]
[357524690,1744121447849,-500.0,0.00035616,2]
[357524691,1744121447859,-500.0,0.00035616,2]
[357524692,1744121447869,-500.0,0.00035616,2]
[357524693,1744121447879,-654.78,0.00035616,2]
[357524694,1744121447889,-500.0,0.00035616,2]
[357524695,1744121447898,-500.0,0.00035616,2]
[357524696,1744121447908,-500.0,0.00035616,2]
[357524697,1744121447918,-882.36,0.00035616,2]
[357524698,1744121447928,-500.0,0.00035616,2]
[357524699,1744121447938,-882.36,0.00035616,2]
[357524700,1744121447947,-500.0,0.00035616,2]
[357524701,1744121447959,-882.36,0.00035616,2]
[357524702,1744121447968,-500.0,0.00035616,2]
[357524703,1744121447978,-882.36,0.00035616,2]
[357524704,1744121447987,-882.36,0.00035616,2]
[357524705,1744121447997,-501.74283449,0.00035616,2]
[357524706,1744121448007,-500.0,0.00035616,2]
[357524707,1744121448016,-500.0,0.00035616,2]
[357524708,1744121448026,-362.6436737,0.00035616,2]
[357524709,1744121448037,-558.56921596,0.00035616,2]
[357524710,1744121448048,-504.38657359,0.00035616,2]
[357524711,1744121448058,-769.52,0.00035616,2]
[357524712,1744121448068,-500.0,0.00035616,2]
[357524713,1744121448078,-500.0,0.00035616,2]
[357524714,1744121448087,-500.0,0.00035616,2]
[357524715,1744121448100,-500.0,0.00035616,2]
[357524716,1744121448110,-500.0,0.00035616,2]
[357524717,1744121448120,-520.92934328,0.00035616,2]
[357524718,1744121448130,-500.0,0.00035616,2]
[357524719,1744121448140,-864.58,0.00035616,2]
[357524720,1744121448150,-500.0,0.00035616,2]
[357524721,1744121448160,-500.0,0.00035616,2]
[357524722,1744121448170,-500.69,0.00035616,2]
[357524723,1744121448180,-500.0,0.00035616,2]
[357524724,1744121448190,-500.0,0.00035616,2]
[357524725,1744121448200,-500.0,0.00035616,2]
[357524726,1744121448211,-500.0,0.00035616,2]
[357524727,1744121448221,-502.48630355,0.00035616,2]
[357524728,1744121448230,-500.0,0.00035616,2]
[357524729,1744121448240,-500.0,0.00035616,2]
[357524730,1744121448249,-619.09,0.00035616,2]
[357524731,1744121448258,-500.0,0.00035616,2]
[357524732,1744121448268,-500.0,0.00035616,2]
[357524733,1744121448277,-500.0,0.00035616,2]
[357524734,1744121448287,-500.0,0.00035616,2]
[357524735,1744121448296,-500.0,0.00035616,2]
[357524736,1744121448306,-500.0,0.00035616,2]
[357524737,1744121448315,-500.0,0.00035616,2]
[357524738,1744121448325,-500.0,0.00035616,2]
[357524739,1744121448335,-501.77173618,0.00035616,2]
[357524740,1744121448344,-1028.8,0.00035616,2]
[357524741,1744121448354,-500.0,0.00035616,2]
[357524742,1744121448363,-500.0,0.00035616,2]
[357524743,1744121448374,-500.0,0.00035616,2]
[357524744,1744121448383,-500.0,0.00035616,2]
[357524745,1744121448393,-500.0,0.00035616,2]
[357524746,1744121448403,-500.0,0.00035616,2]
[357524747,1744121448413,-500.0,0.00035616,2]
[357524748,1744121448424,-500.0,0.00035616,2]
[357524749,1744121448434,-503.26884886,0.00035616,2]
[357524750,1744121448443,-736.83,0.00035616,2]
[357524751,1744121448453,-260.03647504,0.00035616,2]
[357524752,1744121448464,-500.0,0.00035616,2]
[357524753,1744121448474,-500.0,0.00035616,2]
[357524754,1744121448484,-501.70511523,0.00035616,2]
[357524755,1744121448494,-500.0,0.00035616,2]
[357524756,1744121448503,-500.0,0.00035616,2]
[357524757,1744121448513,-501.62902708,0.00035616,2]
[357524758,1744121448523,-500.0,0.00035616,2]
[357524759,1744121448532,-500.0,0.00035616,2]
[357524760,1744121448542,-500.0,0.00035616,2]
[357524761,1744121448552,-500.0,0.00035616,2]
[357524762,1744121448561,-713.14,0.00035616,2]
[357524763,1744121448571,-500.0,0.00035616,2]
[357524764,1744121448581,-520.42546035,0.00035616,2]
[357524765,1744121448590,-500.0,0.00035616,2]
[357524766,1744121448600,-500.0,0.00035616,2]
[357524767,1744121448610,-500.0,0.00035616,2]
[357524768,1744121448620,-569.55538775,0.00035616,2]
[357524769,1744121448630,-500.0,0.00035616,2]
[357524770,1744121448640,-500.0,0.00035616,2]
[357524771,1744121448649,-500.0,0.00035616,2]
[357524772,1744121448659,-515.17965088,0.00035616,2]
[357524773,1744121448668,-500.0,0.00035616,2]
[357524774,1744121448678,-512.38583507,0.00035616,2]
[357524775,1744121448687,-500.0,0.00035616,2]
[357524776,1744121448697,-500.0,0.00035616,2]
[357524777,1744121448708,-500.0,0.00035616,2]
[357524778,1744121448717,-510.48779879,0.00035616,2]
[357524779,1744121448727,-500.0,0.00035616,2]
[357524780,1744121448736,-500.0,0.00035616,2]
[357524781,1744121448746,-500.0,0.00035616,2]
[357524782,1744121448755,-500.0,0.00035616,2]
[357524783,1744121448764,-500.0,0.00035616,2]
[357524784,1744121448774,-758.04,0.00035616,2]
[357524785,1744121448784,-500.0,0.00035616,2]
[357524786,1744121448793,-500.0,0.00035616,2]
[357524787,1744121448803,-500.0,0.00035616,2]
[357524788,1744121448813,-500.0,0.00035616,2]
[357524789,1744121448823,-518.39,0.00035616,2]
[357524790,1744121448832,-500.0,0.00035616,2]
[357524791,1744121448842,-500.0,0.00035616,2]
[357524792,1744121448852,-500.0,0.00035616,2]
[357524793,1744121448862,-437.90340025,0.00035616,2]